[Event "Late-Titled-Tuesday-Blitz-March-19-2024"]
[Site "Chess.com"]
[Date "2024.03.19"]
[Round "2"]
[White "esrosenberg"]
[Black "Mops_2004"]
[Result "1-0"]
[WhiteElo "2491"]
[BlackElo "2733"]
[TimeControl "180+1"]
[EndTime "14:18:39 PDT"]
[Termination "esrosenberg won by resignation"]

1. d4 {[%clk 0:03:00.1]} 1... d5 {[%clk 0:03:00]} 2. Nf3 {[%clk 0:03:00.6]} 2...
Nf6 {[%clk 0:03:00.1]} 3. g3 {[%clk 0:03:01.2]} 3... c6 {[%clk 0:02:59.5]} 4.
Bg2 {[%clk 0:03:01.3]} 4... Bf5 {[%clk 0:03:00.2]} 5. O-O {[%clk 0:02:58.4]}
5... e6 {[%clk 0:03:00.4]} 6. c4 {[%clk 0:02:58.6]} 6... Nbd7 {[%clk 0:02:59.7]}
7. Nc3 {[%clk 0:02:58.8]} 7... h6 {[%clk 0:02:58.2]} 8. Qb3 {[%clk 0:02:56.1]}
8... Qb6 {[%clk 0:02:57.9]} 9. c5 {[%clk 0:02:56.8]} 9... Qxb3 {[%clk
0:02:56.5]} 10. axb3 {[%clk 0:02:57.7]} 10... a6 {[%clk 0:02:57]} 11. b4 {[%clk
0:02:58]} 11... Rc8 {[%clk 0:02:56.9]} 12. Nd2 {[%clk 0:02:49.9]} 12... Be7
{[%clk 0:02:50.9]} 13. Nb3 {[%clk 0:02:49.9]} 13... Bd8 {[%clk 0:02:32.8]} 14.
Bf4 {[%clk 0:02:48]} 14... O-O {[%clk 0:02:32.1]} 15. Bd6 {[%clk 0:02:46.1]}
15... Re8 {[%clk 0:02:32.1]} 16. f3 {[%clk 0:02:44.6]} 16... Bc2 {[%clk
0:02:12.5]} 17. Na5 {[%clk 0:02:44.4]} 17... Bxa5 {[%clk 0:02:12.3]} 18. bxa5
{[%clk 0:02:37.1]} 18... e5 {[%clk 0:02:12.6]} 19. e3 {[%clk 0:02:31.4]} 19...
e4 {[%clk 0:01:59.5]} 20. fxe4 {[%clk 0:02:23.7]} 20... Nxe4 {[%clk 0:01:58.5]}
21. Nxe4 {[%clk 0:02:24.2]} 21... Bxe4 {[%clk 0:01:56.6]} 22. Bh3 {[%clk
0:02:23.5]} 22... f5 {[%clk 0:01:44.9]} 23. Bxf5 {[%clk 0:02:15.4]} 23... Bxf5
{[%clk 0:01:44.9]} 24. Rxf5 {[%clk 0:02:16.3]} 24... Rxe3 {[%clk 0:01:45.1]} 25.
Raf1 {[%clk 0:02:17.2]} 25... Nf6 {[%clk 0:01:40.5]} 26. Be5 {[%clk 0:02:17.6]}
26... Ng4 {[%clk 0:00:56.1]} 27. Rf7 {[%clk 0:02:04.6]} 27... Nxe5 {[%clk
0:00:55.7]} 28. dxe5 {[%clk 0:02:04.6]} 28... Rxe5 {[%clk 0:00:51.9]} 29. Rxb7
{[%clk 0:02:04.8]} 29... Rf8 {[%clk 0:00:31.1]} 30. Rxf8+ {[%clk 0:01:55.7]}
30... Kxf8 {[%clk 0:00:32]} 31. Kf2 {[%clk 0:01:51.3]} 31... d4 {[%clk
0:00:29.6]} 32. b4 {[%clk 0:01:51.2]} 32... Ke8 {[%clk 0:00:23.4]} 33. Rxg7
{[%clk 0:01:28.7]} 33... Re4 {[%clk 0:00:20.6]} 34. Rg6 {[%clk 0:01:26.3]} 34...
d3 {[%clk 0:00:20]} 35. Rd6 {[%clk 0:01:26.2]} 35... Rxb4 {[%clk 0:00:17.8]} 36.
Ke3 {[%clk 0:01:22.2]} 36... Rb5 {[%clk 0:00:13.4]} 37. Rxc6 {[%clk 0:01:20.6]}
37... Rxa5 {[%clk 0:00:13.8]} 38. Kxd3 {[%clk 0:01:18.6]} 38... h5 {[%clk
0:00:12.4]} 39. Kc4 {[%clk 0:01:17.3]} 39... Ra2 {[%clk 0:00:11.2]} 40. h3
{[%clk 0:01:09.6]} 40... Ra3 {[%clk 0:00:09.4]} 41. g4 {[%clk 0:01:00.9]} 41...
h4 {[%clk 0:00:05.5]} 42. Kb4 {[%clk 0:00:57.8]} 42... Rxh3 {[%clk 0:00:05.4]}
43. Rxa6 {[%clk 0:00:58.5]} 43... Rg3 {[%clk 0:00:05.6]} 44. Rg6 {[%clk
0:00:58.7]} 44... Kd7 {[%clk 0:00:04.9]} 45. Kc4 {[%clk 0:00:55.3]} 45... h3
{[%clk 0:00:04.4]} 46. Kd5 {[%clk 0:00:55.4]} 46... h2 {[%clk 0:00:04.5]} 47.
Rh6 {[%clk 0:00:56]} 47... Rxg4 {[%clk 0:00:03.9]} 48. Rh7+ {[%clk 0:00:55.6]}
48... Kd8 {[%clk 0:00:03.8]} 49. Rxh2 {[%clk 0:00:56.5]} 49... Rg5+ {[%clk
0:00:04.2]} 50. Kc6 {[%clk 0:00:56.1]} 50... Rg6+ {[%clk 0:00:04.6]} 51. Kb7
{[%clk 0:00:56.5]} 51... Rg7+ {[%clk 0:00:04.3]} 52. Kb6 {[%clk 0:00:56.6]}
52... Rg6+ {[%clk 0:00:03.3]} 53. c6 {[%clk 0:00:57]} 53... Rg1 {[%clk
0:00:03.2]} 54. Rh8+ {[%clk 0:00:57.4]} 54... Ke7 {[%clk 0:00:03.6]} 55. Kc7
{[%clk 0:00:57.6]} 55... Ra1 {[%clk 0:00:02.2]} 56. Rh7+ {[%clk 0:00:57.9]}
56... Ke6 {[%clk 0:00:02.8]} 57. Rh6+ {[%clk 0:00:53.5]} 57... Ke7 {[%clk
0:00:02.9]} 58. Kc8 {[%clk 0:00:52.8]} 58... Ra8+ {[%clk 0:00:01.4]} 59. Kb7
{[%clk 0:00:53.3]} 59... Ra1 {[%clk 0:00:02.2]} 60. Rh7+ {[%clk 0:00:52.7]}
60... Kd6 {[%clk 0:00:02]} 61. Rd7+ {[%clk 0:00:53]} 61... Ke6 {[%clk
0:00:02.5]} 62. Rd2 {[%clk 0:00:52.2]} 62... Rb1+ {[%clk 0:00:02.9]} 63. Kc8
{[%clk 0:00:52.4]} 63... Rb3 {[%clk 0:00:02.3]} 64. c7 {[%clk 0:00:52.2]} 64...
Ke7 {[%clk 0:00:02.8]} 65. Re2+ {[%clk 0:00:51.5]} 65... Kd6 {[%clk 0:00:02.9]}
66. Kd8 {[%clk 0:00:52]} 66... Rh3 {[%clk 0:00:02.6]} 67. c8=Q {[%clk 0:00:50]}
1-0

[Event "Late-Titled-Tuesday-Blitz-March-19-2024"]
[Site "Chess.com"]
[Date "2024.03.19"]
[Round "2"]
[White "AsterPhoenix"]
[Black "IngOscarArdila"]
[Result "1-0"]
[WhiteElo "2653"]
[BlackElo "2399"]
[TimeControl "180+1"]
[EndTime "14:18:42 PDT"]
[Termination "AsterPhoenix won on time"]

1. e4 {[%clk 0:03:00.9]} 1... e5 {[%clk 0:02:59.4]} 2. Nf3 {[%clk 0:03:00.4]}
2... Nf6 {[%clk 0:02:59.6]} 3. Nxe5 {[%clk 0:02:59.1]} 3... d6 {[%clk
0:02:59.9]} 4. Nd3 {[%clk 0:02:56.8]} 4... Nxe4 {[%clk 0:02:59.2]} 5. Qe2 {[%clk
0:02:57.3]} 5... Qe7 {[%clk 0:02:58.7]} 6. Nf4 {[%clk 0:02:57.6]} 6... Nf6
{[%clk 0:02:58.6]} 7. d4 {[%clk 0:02:57]} 7... Qxe2+ {[%clk 0:02:58.5]} 8. Bxe2
{[%clk 0:02:56.9]} 8... Bf5 {[%clk 0:02:59]} 9. Na3 {[%clk 0:02:31.8]} 9... c6
{[%clk 0:02:54.1]} 10. d5 {[%clk 0:02:30]} 10... Be7 {[%clk 0:02:49.9]} 11. Be3
{[%clk 0:02:16.2]} 11... O-O {[%clk 0:02:48.2]} 12. O-O-O {[%clk 0:02:15.2]}
12... c5 {[%clk 0:02:30.8]} 13. f3 {[%clk 0:02:02.5]} 13... a6 {[%clk
0:02:25.2]} 14. g4 {[%clk 0:02:00.8]} 14... Bc8 {[%clk 0:02:22.5]} 15. Nc4
{[%clk 0:01:56.9]} 15... Nbd7 {[%clk 0:02:21]} 16. h4 {[%clk 0:01:45.4]} 16...
b5 {[%clk 0:02:20.8]} 17. Na5 {[%clk 0:01:44.9]} 17... Nb8 {[%clk 0:01:46.1]}
18. Nc6 {[%clk 0:01:40.3]} 18... Nxc6 {[%clk 0:01:43.6]} 19. dxc6 {[%clk
0:01:41.2]} 19... Be6 {[%clk 0:01:29.7]} 20. g5 {[%clk 0:01:37.9]} 20... Ne8
{[%clk 0:01:28]} 21. Nd5 {[%clk 0:01:24.7]} 21... Bxd5 {[%clk 0:01:27.3]} 22.
Rxd5 {[%clk 0:01:24.9]} 22... Nc7 {[%clk 0:01:27.1]} 23. Rdd1 {[%clk 0:01:16.6]}
23... d5 {[%clk 0:01:18.7]} 24. Bf4 {[%clk 0:01:09.9]} 24... Ne6 {[%clk
0:01:18.5]} 25. Be5 {[%clk 0:01:09.3]} 25... Rac8 {[%clk 0:01:09.9]} 26. Rxd5
{[%clk 0:01:05.6]} 26... Rxc6 {[%clk 0:01:09.6]} 27. Rd7 {[%clk 0:00:58.3]}
27... Re8 {[%clk 0:00:58.3]} 28. f4 {[%clk 0:00:58.4]} 28... Nf8 {[%clk
0:00:52.1]} 29. Ra7 {[%clk 0:00:54.3]} 29... f6 {[%clk 0:00:28.9]} 30. Bf3
{[%clk 0:00:53.1]} 30... Rcc8 {[%clk 0:00:28]} 31. Bd5+ {[%clk 0:00:46.9]} 31...
Kh8 {[%clk 0:00:27.8]} 32. Bc3 {[%clk 0:00:29.2]} 32... Rcd8 {[%clk 0:00:20]}
33. Bf7 {[%clk 0:00:28.2]} 33... Ra8 {[%clk 0:00:19.8]} 34. Rxa8 {[%clk
0:00:18.4]} 34... Rxa8 {[%clk 0:00:19.4]} 35. Re1 {[%clk 0:00:19]} 35... Ra7
{[%clk 0:00:16]} 36. Bd5 {[%clk 0:00:16]} 36... Ng6 {[%clk 0:00:13.5]} 37. f5
{[%clk 0:00:12.3]} 37... Nf4 {[%clk 0:00:12.9]} 38. Bc6 {[%clk 0:00:07.7]} 38...
b4 {[%clk 0:00:11.8]} 39. Bd2 {[%clk 0:00:08.1]} 39... Ng2 {[%clk 0:00:09.9]}
40. Bxg2 {[%clk 0:00:06.2]} 40... fxg5 {[%clk 0:00:09.5]} 41. hxg5 {[%clk
0:00:06.5]} 41... h6 {[%clk 0:00:09.7]} 42. f6 {[%clk 0:00:05.7]} 42... gxf6
{[%clk 0:00:09.5]} 43. gxh6 {[%clk 0:00:06.4]} 43... Bf8 {[%clk 0:00:09.4]} 44.
Bd5 {[%clk 0:00:05.6]} 44... Rd7 {[%clk 0:00:08.6]} 45. Bc4 {[%clk 0:00:06]}
45... f5 {[%clk 0:00:08.6]} 46. Rg1 {[%clk 0:00:05.7]} 46... f4 {[%clk
0:00:08.2]} 47. Rg8+ {[%clk 0:00:05.3]} 47... Kh7 {[%clk 0:00:07.8]} 48. Rxf8
{[%clk 0:00:06.2]} 48... Kg6 {[%clk 0:00:06.9]} 49. Rxf4 {[%clk 0:00:06.3]}
49... Kxh6 {[%clk 0:00:07.4]} 50. Rf7+ {[%clk 0:00:06.3]} 1-0

[Event "Late-Titled-Tuesday-Blitz-March-19-2024"]
[Site "Chess.com"]
[Date "2024.03.19"]
[Round "2"]
[White "dretch"]
[Black "Matrix3x3a"]
[Result "1-0"]
[WhiteElo "2870"]
[BlackElo "2607"]
[TimeControl "180+1"]
[EndTime "14:18:45 PDT"]
[Termination "dretch won on time"]

1. d4 {[%clk 0:03:00.9]} 1... Nf6 {[%clk 0:02:59.7]} 2. c4 {[%clk 0:03:00.8]}
2... e6 {[%clk 0:02:59.3]} 3. Nc3 {[%clk 0:02:59.9]} 3... Bb4 {[%clk 0:02:58.7]}
4. Qc2 {[%clk 0:03:00]} 4... O-O {[%clk 0:02:58]} 5. e4 {[%clk 0:02:59.9]} 5...
d5 {[%clk 0:02:57.5]} 6. e5 {[%clk 0:03:00.3]} 6... Ne4 {[%clk 0:02:57.1]} 7.
Bd3 {[%clk 0:03:01]} 7... c5 {[%clk 0:02:54.5]} 8. Nf3 {[%clk 0:03:01.7]} 8...
Nc6 {[%clk 0:02:50.6]} 9. O-O {[%clk 0:03:01.1]} 9... Bxc3 {[%clk 0:02:17.3]}
10. bxc3 {[%clk 0:03:00]} 10... cxd4 {[%clk 0:02:17]} 11. Ba3 {[%clk 0:03:00.3]}
11... Re8 {[%clk 0:02:13.9]} 12. cxd4 {[%clk 0:02:59.3]} 12... Na5 {[%clk
0:02:10.9]} 13. cxd5 {[%clk 0:02:54.5]} 13... exd5 {[%clk 0:02:10.4]} 14. Bxe4
{[%clk 0:02:54.3]} 14... dxe4 {[%clk 0:02:09.4]} 15. Qxe4 {[%clk 0:02:54.5]}
15... Nc4 {[%clk 0:02:04.7]} 16. Bc1 {[%clk 0:02:51]} 16... Be6 {[%clk
0:02:03.6]} 17. Ng5 {[%clk 0:02:50.9]} 17... g6 {[%clk 0:01:59]} 18. Nxe6 {[%clk
0:02:49.1]} 18... fxe6 {[%clk 0:01:57.4]} 19. Bh6 {[%clk 0:02:28]} 19... Nb6
{[%clk 0:01:48.1]} 20. Qxb7 {[%clk 0:02:26.3]} 20... Re7 {[%clk 0:01:42.6]} 21.
Qe4 {[%clk 0:02:26]} 21... Rd7 {[%clk 0:01:38.9]} 22. Rfd1 {[%clk 0:02:22.7]}
22... Nd5 {[%clk 0:01:37.5]} 23. Rac1 {[%clk 0:02:18.1]} 23... Rc8 {[%clk
0:01:37.2]} 24. Rxc8 {[%clk 0:02:10.4]} 24... Qxc8 {[%clk 0:01:32.8]} 25. Rc1
{[%clk 0:02:06.8]} 25... Rc7 {[%clk 0:01:30.4]} 26. Rxc7 {[%clk 0:02:06.1]}
26... Qxc7 {[%clk 0:01:31.3]} 27. h4 {[%clk 0:02:05.4]} 27... Qe7 {[%clk
0:01:26.7]} 28. Qc2 {[%clk 0:01:54.1]} 28... Qb7 {[%clk 0:01:23.7]} 29. Qc1
{[%clk 0:01:49.7]} 29... Kf7 {[%clk 0:01:18.1]} 30. Kh2 {[%clk 0:01:45.7]} 30...
Ke8 {[%clk 0:01:14.4]} 31. Qc5 {[%clk 0:01:43.1]} 31... Ne7 {[%clk 0:01:09.9]}
32. f3 {[%clk 0:01:32.7]} 32... Qd7 {[%clk 0:01:02.5]} 33. a3 {[%clk 0:01:25.6]}
33... a6 {[%clk 0:00:58.8]} 34. Qb6 {[%clk 0:01:22.1]} 34... Qc8 {[%clk
0:00:54.7]} 35. Qd6 {[%clk 0:01:17.9]} 35... Nf5 {[%clk 0:00:51]} 36. Qf8+
{[%clk 0:01:17.3]} 36... Kd7 {[%clk 0:00:50.9]} 37. Qf7+ {[%clk 0:01:08.7]}
37... Kc6 {[%clk 0:00:50.7]} 38. Qxh7 {[%clk 0:01:07.4]} 38... Qd8 {[%clk
0:00:41.9]} 39. Bg5 {[%clk 0:01:03.7]} 39... Qxd4 {[%clk 0:00:39.3]} 40. Qxg6
{[%clk 0:00:57]} 40... Qxe5+ {[%clk 0:00:38]} 41. f4 {[%clk 0:00:57.3]} 41...
Qe3 {[%clk 0:00:35.6]} 42. Qe8+ {[%clk 0:00:51.8]} 42... Kd5 {[%clk 0:00:29.5]}
43. Qd7+ {[%clk 0:00:47.8]} 43... Kc4 {[%clk 0:00:22.2]} 44. Qa4+ {[%clk
0:00:47.8]} 44... Kc3 {[%clk 0:00:18.8]} 45. Bf6+ {[%clk 0:00:44.4]} 45... Kd2
{[%clk 0:00:16.4]} 46. Qb4+ {[%clk 0:00:40.1]} 46... Ke2 {[%clk 0:00:15.9]} 47.
Qb2+ {[%clk 0:00:39.1]} 47... Kf1 {[%clk 0:00:13.9]} 48. Qb1+ {[%clk 0:00:38]}
48... Ke2 {[%clk 0:00:11.8]} 49. Qc2+ {[%clk 0:00:38.1]} 49... Kf1 {[%clk
0:00:11.8]} 50. Qd1+ {[%clk 0:00:30.9]} 50... Kf2 {[%clk 0:00:11.3]} 51. Qg1+
{[%clk 0:00:30.1]} 51... Ke2 {[%clk 0:00:11.6]} 52. Qxe3+ {[%clk 0:00:29.6]}
52... Nxe3 {[%clk 0:00:12.5]} 53. Kg3 {[%clk 0:00:25.4]} 53... Nf5+ {[%clk
0:00:11.9]} 54. Kh3 {[%clk 0:00:23.9]} 54... Kf2 {[%clk 0:00:12]} 55. g4 {[%clk
0:00:24]} 55... Nh6 {[%clk 0:00:11.2]} 56. h5 {[%clk 0:00:24.3]} 56... Kf3
{[%clk 0:00:11]} 57. g5 {[%clk 0:00:24.5]} 57... Nf5 {[%clk 0:00:11.5]} 58. h6
{[%clk 0:00:24.8]} 58... Kxf4 {[%clk 0:00:12]} 59. h7 {[%clk 0:00:25.2]} 1-0

[Event "Late-Titled-Tuesday-Blitz-March-19-2024"]
[Site "Chess.com"]
[Date "2024.03.19"]
[Round "2"]
[White "Redzishchess"]
[Black "Szachulec75"]
[Result "1-0"]
[WhiteElo "2494"]
[BlackElo "2197"]
[TimeControl "180+1"]
[EndTime "14:18:45 PDT"]
[Termination "Redzishchess won by resignation"]

1. d4 {[%clk 0:02:53]} 1... Nf6 {[%clk 0:02:59.2]} 2. c4 {[%clk 0:02:52.2]} 2...
g6 {[%clk 0:02:58.8]} 3. g3 {[%clk 0:02:50.9]} 3... Bg7 {[%clk 0:02:58.8]} 4.
Bg2 {[%clk 0:02:50.7]} 4... d6 {[%clk 0:02:59.1]} 5. Nc3 {[%clk 0:02:50.7]} 5...
O-O {[%clk 0:02:59.6]} 6. Nf3 {[%clk 0:02:51]} 6... Nbd7 {[%clk 0:02:59.1]} 7.
O-O {[%clk 0:02:51.3]} 7... e5 {[%clk 0:02:59.2]} 8. e4 {[%clk 0:02:51.5]} 8...
exd4 {[%clk 0:02:59]} 9. Nxd4 {[%clk 0:02:52.4]} 9... Re8 {[%clk 0:02:58.9]} 10.
Re1 {[%clk 0:02:44.9]} 10... c6 {[%clk 0:02:58.8]} 11. h3 {[%clk 0:02:40.7]}
11... a5 {[%clk 0:02:58.1]} 12. Be3 {[%clk 0:02:30]} 12... Nc5 {[%clk
0:02:57.2]} 13. Qc2 {[%clk 0:02:30.2]} 13... Bd7 {[%clk 0:02:57.2]} 14. Rad1
{[%clk 0:02:13.2]} 14... Qc8 {[%clk 0:02:56.9]} 15. Bf4 {[%clk 0:01:49]} 15...
Bxh3 {[%clk 0:02:52.5]} 16. Bxd6 {[%clk 0:01:40]} 16... Bxg2 {[%clk 0:02:26.4]}
17. Kxg2 {[%clk 0:01:40.9]} 17... Ne6 {[%clk 0:02:25.6]} 18. Nde2 {[%clk
0:01:06.1]} 18... Ng5 {[%clk 0:02:06.4]} 19. Nf4 {[%clk 0:00:58.9]} 19... Nh5
{[%clk 0:02:02.1]} 20. Rh1 {[%clk 0:00:48.5]} 20... Nxf4+ {[%clk 0:01:40.5]} 21.
Bxf4 {[%clk 0:00:49.4]} 21... Qg4 {[%clk 0:01:14.5]} 22. Bxg5 {[%clk 0:00:27.8]}
22... Qxg5 {[%clk 0:01:13.5]} 23. Rd7 {[%clk 0:00:19.4]} 23... Re7 {[%clk
0:01:13.1]} 24. f4 {[%clk 0:00:15.6]} 24... Qf6 {[%clk 0:01:12.5]} 25. e5 {[%clk
0:00:16]} 25... Qe6 {[%clk 0:01:11.5]} 26. Rxe7 {[%clk 0:00:16.4]} 26... Qxe7
{[%clk 0:01:11]} 27. Rd1 {[%clk 0:00:17.1]} 27... f6 {[%clk 0:01:07]} 28. exf6
{[%clk 0:00:10.3]} 28... Qxf6 {[%clk 0:01:06.8]} 29. Ne4 {[%clk 0:00:10.4]}
29... Qxb2 {[%clk 0:01:02.8]} 30. Qxb2 {[%clk 0:00:09.8]} 30... Bxb2 {[%clk
0:01:03.7]} 31. Rb1 {[%clk 0:00:10.3]} 31... Bd4 {[%clk 0:00:58.2]} 32. Rxb7
{[%clk 0:00:10.1]} 32... c5 {[%clk 0:00:49.4]} 33. Kf3 {[%clk 0:00:10]} 33... a4
{[%clk 0:00:49.1]} 34. Rc7 {[%clk 0:00:07.7]} 34... Rb8 {[%clk 0:00:43.5]} 35.
Kg4 {[%clk 0:00:04.4]} 35... Rb2 {[%clk 0:00:29.2]} 36. Kg5 {[%clk 0:00:05]}
36... Rxa2 {[%clk 0:00:28.6]} 37. Nf6+ {[%clk 0:00:04.8]} 37... Kf8 {[%clk
0:00:25.1]} 38. Nxh7+ {[%clk 0:00:04.6]} 38... Ke8 {[%clk 0:00:26]} 39. Nf6+
{[%clk 0:00:04.4]} 39... Kd8 {[%clk 0:00:25.2]} 40. Rd7+ {[%clk 0:00:03.7]}
40... Kc8 {[%clk 0:00:24.6]} 41. Ra7 {[%clk 0:00:03.8]} 41... a3 {[%clk
0:00:21.1]} 42. Ne8 {[%clk 0:00:01.9]} 42... Rg2 {[%clk 0:00:18]} 43. Nd6+
{[%clk 0:00:01.6]} 43... Kb8 {[%clk 0:00:16.7]} 44. Rxa3 {[%clk 0:00:02.5]}
44... Rxg3+ {[%clk 0:00:16.3]} 45. Rxg3 {[%clk 0:00:03.4]} 45... Kc7 {[%clk
0:00:15.3]} 46. Rg4 {[%clk 0:00:04.3]} 46... Be3 {[%clk 0:00:15]} 47. Nb5+
{[%clk 0:00:03.9]} 47... Kc6 {[%clk 0:00:14.8]} 48. Kxg6 {[%clk 0:00:04.8]}
48... Kd7 {[%clk 0:00:11.6]} 49. Kf5 {[%clk 0:00:05.4]} 49... Kc6 {[%clk
0:00:10.4]} 50. Ke4 {[%clk 0:00:05.9]} 1-0

[Event "Late-Titled-Tuesday-Blitz-March-19-2024"]
[Site "Chess.com"]
[Date "2024.03.19"]
[Round "2"]
[White "sergiochess83"]
[Black "wild3000"]
[Result "1-0"]
[WhiteElo "2956"]
[BlackElo "2436"]
[TimeControl "180+1"]
[EndTime "14:18:47 PDT"]
[Termination "sergiochess83 won on time"]

1. d4 {[%clk 0:02:58]} 1... Nf6 {[%clk 0:02:59.7]} 2. c4 {[%clk 0:02:58]} 2...
e6 {[%clk 0:02:52.1]} 3. g3 {[%clk 0:02:57.8]} 3... Bb4+ {[%clk 0:02:49.2]} 4.
Nd2 {[%clk 0:02:56.5]} 4... O-O {[%clk 0:02:43.6]} 5. Bg2 {[%clk 0:02:55.6]}
5... d5 {[%clk 0:02:42.3]} 6. Nf3 {[%clk 0:02:55]} 6... dxc4 {[%clk 0:02:42]} 7.
O-O {[%clk 0:02:55.1]} 7... Nbd7 {[%clk 0:02:37.2]} 8. Nxc4 {[%clk 0:02:54.1]}
8... Nb6 {[%clk 0:02:37]} 9. Nce5 {[%clk 0:02:49.3]} 9... Be7 {[%clk 0:02:28.7]}
10. Qc2 {[%clk 0:02:25.2]} 10... a5 {[%clk 0:01:59.7]} 11. e4 {[%clk 0:02:20.2]}
11... a4 {[%clk 0:01:59.7]} 12. Bf4 {[%clk 0:02:19]} 12... Nh5 {[%clk
0:01:45.7]} 13. Be3 {[%clk 0:02:18.1]} 13... Nf6 {[%clk 0:01:45.6]} 14. Rfd1
{[%clk 0:02:16.7]} 14... Bd7 {[%clk 0:01:44.1]} 15. Rac1 {[%clk 0:02:16.2]}
15... a3 {[%clk 0:01:25]} 16. b3 {[%clk 0:02:15]} 16... Rc8 {[%clk 0:01:13.4]}
17. Ne1 {[%clk 0:02:09.6]} 17... h5 {[%clk 0:01:08.7]} 18. h3 {[%clk 0:02:07]}
18... g6 {[%clk 0:01:08.5]} 19. N1d3 {[%clk 0:02:06.2]} 19... Bb5 {[%clk
0:01:07.9]} 20. Nc5 {[%clk 0:02:05.5]} 20... Bxc5 {[%clk 0:00:50.4]} 21. dxc5
{[%clk 0:02:03.5]} 21... Nbd7 {[%clk 0:00:50.8]} 22. Bg5 {[%clk 0:01:00]} 22...
Qe8 {[%clk 0:00:50.1]} 23. Nxd7 {[%clk 0:00:50.2]} 23... Nxd7 {[%clk 0:00:51]}
24. Bh6 {[%clk 0:00:50.7]} 24... e5 {[%clk 0:00:40.4]} 25. Qc3 {[%clk
0:00:38.6]} 25... Kh7 {[%clk 0:00:39]} 26. Bxf8 {[%clk 0:00:38.3]} 26... Nxf8
{[%clk 0:00:39.9]} 27. Qb4 {[%clk 0:00:38.8]} 27... c6 {[%clk 0:00:35.9]} 28.
Qxa3 {[%clk 0:00:38.9]} 28... Ne6 {[%clk 0:00:34.5]} 29. Qb2 {[%clk 0:00:38.7]}
29... Nd4 {[%clk 0:00:29.3]} 30. Rxd4 {[%clk 0:00:37]} 30... exd4 {[%clk
0:00:30.2]} 31. Qxd4 {[%clk 0:00:37.5]} 31... Rd8 {[%clk 0:00:29.1]} 32. Qf6
{[%clk 0:00:32]} 32... Rd2 {[%clk 0:00:23.4]} 33. a4 {[%clk 0:00:31.5]} 33...
Ba6 {[%clk 0:00:20.3]} 34. h4 {[%clk 0:00:19.8]} 34... Qe6 {[%clk 0:00:20.1]}
35. Qxe6 {[%clk 0:00:19.5]} 35... fxe6 {[%clk 0:00:21]} 36. e5 {[%clk
0:00:17.1]} 36... Kg7 {[%clk 0:00:18.1]} 37. Rc3 {[%clk 0:00:10.3]} 37... Rd1+
{[%clk 0:00:17.5]} 38. Kh2 {[%clk 0:00:10.6]} 38... Rd2 {[%clk 0:00:17.7]} 39.
Rf3 {[%clk 0:00:10.8]} 39... Rb2 {[%clk 0:00:15.7]} 40. Rf6 {[%clk 0:00:09.6]}
40... Bd3 {[%clk 0:00:11.2]} 41. Rxe6 {[%clk 0:00:08.6]} 41... Rxf2 {[%clk
0:00:11.1]} 42. Kg1 {[%clk 0:00:07.6]} 42... Rb2 {[%clk 0:00:08.2]} 43. Re7+
{[%clk 0:00:07.5]} 43... Kh6 {[%clk 0:00:08.3]} 44. Rxb7 {[%clk 0:00:08.4]}
44... Bc4 {[%clk 0:00:05.3]} 45. Bxc6 {[%clk 0:00:07]} 45... Bxb3 {[%clk
0:00:04.8]} 46. e6 {[%clk 0:00:05.9]} 46... Rb1+ {[%clk 0:00:04.5]} 47. Kf2
{[%clk 0:00:06.1]} 47... Rb2+ {[%clk 0:00:04.6]} 48. Ke3 {[%clk 0:00:06.5]}
48... g5 {[%clk 0:00:01.7]} 49. e7 {[%clk 0:00:06.8]} 1-0